fUST/lending_fUST_20240824
["ID","MTS","AMOUNT","RATE_DAILY","PERIOD"]
[335740551,1724471445684,-5063.61,0.00013698,2]
[335740553,1724471445694,-500.0,0.00013698,2]
[335740555,1724471445705,-500.0,0.00013698,2]
[335740557,1724471445714,-500.0,0.00013698,2]
[335740559,1724471445725,-588.16,0.00013698,2]
[335740561,1724471445735,-500.0,0.00013698,2]
[335740564,1724471445746,-4822.73,0.00013698,2]
[335740566,1724471445756,-500.0,0.00013698,2]
[335740568,1724471445765,-500.0,0.00013698,2]
[335740570,1724471445775,-500.0,0.00013698,2]
[335740571,1724471445784,-500.0,0.00013698,2]
[335740574,1724471445794,-1109.15,0.00013698,2]
[335740575,1724471445804,-500.0,0.00013698,2]
[335740577,1724471445814,-500.0,0.00013698,2]
[335740579,1724471445826,-500.0,0.00013698,2]
[335740581,1724471445836,-500.0,0.00013698,2]
[335740583,1724471445845,-690.57,0.00013698,2]
[335740586,1724471445856,-500.0,0.00013698,2]
[335740589,1724471445865,-500.0,0.00013698,2]
[335740592,1724471445877,-500.80362181,0.00013698,2]
[335740595,1724471445888,-500.0,0.00013698,2]
[335740598,1724471445897,-500.0,0.00013698,2]
[335740601,1724471445906,-9641.76742539,0.00013698,2]
[335740644,1724471446293,-3444.80257461,0.00013698,2]
[335740646,1724471446304,-6753.19,0.00013698,2]
[335740648,1724471446314,-1336.88,0.00013698,2]
[335740650,1724471446324,-661.83,0.00013698,2]
[335740652,1724471446334,-500.0,0.00013698,2]
[335740654,1724471446343,-500.0,0.00013698,2]
[335740656,1724471446352,-500.0,0.00013698,2]
[335740658,1724471446362,-500.0,0.00013698,2]
[335740660,1724471446373,-500.0,0.00013698,2]
[335740662,1724471446382,-500.0,0.00013698,2]
[335740664,1724471446392,-2061.62,0.00013698,2]
[335740666,1724471446406,-500.0,0.00013698,2]
[335740668,1724471446418,-500.0,0.00013698,2]
[335740670,1724471446429,-500.0,0.00013698,2]
[335740673,1724471446450,-500.0,0.00013698,2]
[335740675,1724471446460,-509.19,0.00013698,2]
[335740677,1724471446470,-500.0,0.00013698,2]
[335740679,1724471446482,-2646.16911478,0.00013698,2]
[335740720,1724471446945,-464.01247643,0.00013698,2]
[335740721,1724471446959,-532.29840879,0.00013698,2]
[335740722,1724471446969,-500.0,0.00013698,2]
[335740723,1724471446980,-500.0,0.00013698,2]
[335740724,1724471446990,-500.0,0.00013698,2]
[335740725,1724471447000,-474.29123879,0.00013698,2]
[335740726,1724471447011,-874.32,0.00013698,2]
[335740727,1724471447023,-1769.76,0.00013698,2]
[335740728,1724471447032,-500.0,0.00013698,2]
[335740729,1724471447042,-677.67,0.00013698,2]
[335740730,1724471447052,-500.0,0.00013698,2]
[335740731,1724471447063,-412.70035242,0.00013698,2]
[335740732,1724471447075,-470.81964758,0.00013698,2]
[335740733,1724471447085,-273.89977207,0.00013698,2]
[335740734,1724471447096,-787.738537,0.00013698,2]
[335740735,1724471447107,-805.48656,0.00013698,2]
[335740736,1724471447120,-561.80513093,0.00013698,2]
[335740737,1724471447129,-148.73810947,0.00013698,2]
[335740738,1724471447140,-351.26189053,0.00013698,2]
[335740739,1724471447150,-500.0,0.00013698,2]
[335740740,1724471447160,-500.85815529,0.00013698,2]
[335740741,1724471447170,-7341.2,0.00013698,2]
[335740742,1724471447179,-1397.91,0.00013698,2]
[335740743,1724471447190,-501.5733447,0.00013698,2]
[335740744,1724471447199,-500.0,0.00013698,2]
[335740745,1724471447209,-720.91,0.00013698,2]
[335740746,1724471447218,-430.44001007,0.00013698,2]
[335740747,1724471447228,-2516.15,0.00013698,2]
[335740748,1724471447238,-500.0,0.00013698,2]
[335740749,1724471447247,-1155.01,0.00013698,2]
[335740750,1724471447256,-500.0,0.00013698,2]
[335740751,1724471447266,-500.0,0.00013698,2]
[335740752,1724471447282,-861.37,0.00013698,2]
[335740753,1724471447297,-500.0,0.00013698,2]
[335740754,1724471447310,-500.0,0.00013698,2]
[335740755,1724471447322,-10568.12,0.00013698,2]
[335740756,1724471447333,-500.0,0.00013698,2]
[335740757,1724471447345,-500.0,0.00013698,2]
[335740759,1724471447356,-1311.08,0.00013698,2]
[335740761,1724471447366,-316.24143331,0.00013698,2]
[335740763,1724471447377,-1149.07,0.00013698,2]
[335740765,1724471447387,-500.0,0.00013698,2]
[335740767,1724471447400,-500.0,0.00013698,2]
[335740769,1724471447410,-500.0,0.00013698,2]
[335740772,1724471447420,-576.6,0.00013698,2]
[335740774,1724471447430,-653.94,0.00013698,2]
[335740776,1724471447441,-929.14,0.00013698,2]
[335740778,1724471447450,-500.0,0.00013698,2]
[335740780,1724471447460,-500.0,0.00013698,2]
[335740782,1724471447471,-500.0,0.00013698,2]
[335740783,1724471447481,-500.0,0.00013698,2]
[335740784,1724471447493,-576.46,0.00013698,2]
[335740786,1724471447503,-660.32,0.00013698,2]
[335740788,1724471447514,-3690.29,0.00013698,2]
[335740790,1724471447524,-500.0,0.00013698,2]
[335740791,1724471447535,-612.77,0.00013698,2]
[335740793,1724471447546,-500.0,0.00013698,2]
[335740795,1724471447558,-500.0,0.00013698,2]
[335740796,1724471447568,-500.0,0.00013698,2]
[335740798,1724471447578,-4411.22,0.00013698,2]
[335740800,1724471447588,-500.0,0.00013698,2]
[335740802,1724471447598,-1006.46,0.00013698,2]
[335740804,1724471447608,-586.3,0.00013698,2]
[335740806,1724471447617,-500.0,0.00013698,2]
[335740807,1724471447627,-500.0,0.00013698,2]
[335740809,1724471447638,-500.0,0.00013698,2]
[335740811,1724471447648,-500.0,0.00013698,2]
[335740813,1724471447659,-1023.12,0.00013698,2]
[335740815,1724471447669,-2340.45,0.00013698,2]
[335740817,1724471447678,-500.0,0.00013698,2]
[335740819,1724471447690,-500.0,0.00013698,2]
[335740821,1724471447700,-2884.16,0.00013698,2]
[335740823,1724471447710,-634.25,0.00013698,2]
[335740825,1724471447722,-548.48,0.00013698,2]
[335740827,1724471447734,-9489.3,0.00013698,2]
[335740829,1724471447744,-500.0,0.00013698,2]
[335740832,1724471447755,-763.37,0.00013698,2]
[335740834,1724471447766,-5892.68,0.00013698,2]
[335740836,1724471447777,-500.0,0.00013698,2]
[335740838,1724471447789,-509.18196234,0.00013698,2]
[335740840,1724471447799,-596.19,0.00013698,2]
[335740842,1724471447810,-500.0,0.00013698,2]
[335740845,1724471447820,-500.0,0.00013698,2]
[335740847,1724471447830,-500.0,0.00013698,2]
[335740848,1724471447839,-607.56,0.00013698,2]
[335740850,1724471447849,-1828.89,0.00013698,2]
[335740852,1724471447859,-500.0,0.00013698,2]
[335740854,1724471447869,-3390.9,0.00013698,2]
[335740855,1724471447878,-500.0,0.00013698,2]
[335740858,1724471447888,-492.81704205,0.00013698,2]
[335740860,1724471447902,-1313.38,0.00013698,2]
[335740862,1724471447912,-583.33,0.00013698,2]
[335740863,1724471447922,-953.8,0.00013698,2]
[335740865,1724471447932,-500.0,0.00013698,2]
[335740867,1724471447944,-658.81,0.00013698,2]
[335740869,1724471447954,-1410.09,0.00013698,2]
[335740871,1724471447964,-916.81,0.00013698,2]
[335740873,1724471447975,-1015.41,0.00013698,2]
[335740875,1724471447985,-500.0,0.00013698,2]
[335740878,1724471447995,-1687.92,0.00013698,2]
[335740880,1724471448005,-1014.35,0.00013698,2]
[335740882,1724471448016,-2426.05,0.00013698,2]
[335740884,1724471448025,-566.06,0.00013698,2]
[335740886,1724471448035,-1412.04,0.00013698,2]
[335740888,1724471448046,-500.0,0.00013698,2]
[335740890,1724471448055,-500.0,0.00013698,2]
[335740892,1724471448065,-2601.23,0.00013698,2]
[335740894,1724471448074,-561.74,0.00013698,2]
[335740896,1724471448085,-590.86,0.00013698,2]
[335740898,1724471448095,-3165.38,0.00013698,2]
[335740900,1724471448105,-862.99,0.00013698,2]
[335740902,1724471448115,-500.0,0.00013698,2]
[335740904,1724471448125,-9369.68,0.00013698,2]
[335740906,1724471448135,-647.06,0.00013698,2]
[335740908,1724471448144,-500.0,0.00013698,2]
[335740910,1724471448154,-500.0,0.00013698,2]
[335740912,1724471448164,-500.0,0.00013698,2]
[335740914,1724471448173,-500.0,0.00013698,2]
[335740916,1724471448185,-500.0,0.00013698,2]
[335740917,1724471448194,-500.0,0.00013698,2]
[335740918,1724471448204,-846.73,0.00013698,2]
[335740919,1724471448214,-447.60060409,0.00013698,2]
[335740920,1724471448225,-500.0,0.00013698,2]
[335740921,1724471448235,-500.0,0.00013698,2]
[335740922,1724471448244,-500.0,0.00013698,2]
[335740923,1724471448254,-787.22,0.00013698,2]
[335740924,1724471448264,-500.0,0.00013698,2]
[335740925,1724471448274,-1117.25,0.00013698,2]
[335740926,1724471448284,-500.0,0.00013698,2]
[335740927,1724471448294,-658.87,0.00013698,2]
[335740928,1724471448304,-887.15,0.00013698,2]
[335740929,1724471448314,-500.0,0.00013698,2]
[335740930,1724471448324,-500.0,0.00013698,2]
[335740931,1724471448334,-500.0,0.00013698,2]
[335740932,1724471448346,-524.40759916,0.00013698,2]
[335740933,1724471448360,-500.0,0.00013698,2]
[335740934,1724471448370,-500.0,0.00013698,2]
[335740935,1724471448380,-500.0,0.00013698,2]
[335740936,1724471448391,-500.0,0.00013698,2]
[335740937,1724471448406,-500.0,0.00013698,2]
[335740938,1724471448417,-500.0,0.00013698,2]
[335740939,1724471448427,-500.0,0.00013698,2]
[335740940,1724471448439,-500.0,0.00013698,2]
[335740941,1724471448452,-500.0,0.00013698,2]
[335740943,1724471448462,-500.0,0.00013698,2]
[335740945,1724471448474,-500.0,0.00013698,2]
[335740947,1724471448485,-303.56066814,0.00013698,2]
[335740949,1724471448495,-2368.24,0.00013698,2]
[335740951,1724471448505,-581.01,0.00013698,2]
[335740953,1724471448515,-500.0,0.00013698,2]
[335740955,1724471448525,-675.71,0.00013698,2]
[335740957,1724471448535,-590.96582078,0.00013698,2]
[335740959,1724471448545,-500.0,0.00013698,2]
[335740961,1724471448554,-3829.32,0.00013698,2]
[335740963,1724471448565,-978.69,0.00013698,2]
[335740965,1724471448575,-523.95976346,0.00013698,2]
[335740967,1724471448585,-500.0,0.00013698,2]
[335740969,1724471448595,-160.97130701,0.00013698,2]
[335740971,1724471448605,-521.09788376,0.00013698,2]
[335740973,1724471448614,-2192.71,0.00013698,2]
[335740975,1724471448625,-987.1,0.00013698,2]
[335740977,1724471448635,-500.0,0.00013698,2]
[335740979,1724471448645,-576.51,0.00013698,2]
[335740981,1724471448657,-500.0,0.00013698,2]
[335740983,1724471448667,-500.0,0.00013698,2]
[335740984,1724471448676,-500.0,0.00013698,2]
[335740986,1724471448688,-907.21,0.00013698,2]
[335740988,1724471448698,-506.11145161,0.00013698,2]
[335740990,1724471448708,-957.24,0.00013698,2]
[335740992,1724471448718,-294.45783431,0.00013698,2]
[335741005,1724471448838,-205.54216569,0.00013698,2]
[335741007,1724471448849,-9402.55391753,0.00013698,2]
[335741095,1724471449661,-25.4797079,0.00013697,2]
[335741098,1724471449678,-787.6303933,0.00013697,2]
[335741100,1724471449688,-2476.51608247,0.00013698,2]
[335741101,1724471449698,-500.0,0.00013698,2]
[335741103,1724471449707,-500.0,0.00013698,2]
[335741105,1724471449717,-500.0,0.00013698,2]
[335741107,1724471449726,-653.3,0.00013698,2]
[335741110,1724471449736,-500.0,0.00013698,2]
[335741112,1724471449746,-1345.35,0.00013698,2]
[335741114,1724471449755,-500.0,0.00013698,2]
[335741116,1724471449765,-721.9,0.00013698,2]
[335741118,1724471449775,-626.86,0.00013698,2]
[335741120,1724471449785,-2535.53181657,0.00013698,2]
[335741122,1724471449796,-703.39818343,0.00013698,2]
[335741124,1724471449806,-500.0,0.00013698,2]
[335741126,1724471449815,-500.0,0.00013698,2]
[335741128,1724471449825,-500.0,0.00013698,2]
[335741130,1724471449834,-744.33,0.00013698,2]
[335741132,1724471449844,-981.34,0.00013698,2]
[335741134,1724471449854,-500.0,0.00013698,2]
[335741136,1724471449863,-388.95698999,0.00013698,2]
[335741138,1724471449875,-111.04301001,0.00013698,2]
[335741139,1724471449884,-1738.1508715,0.00013698,2]
[335741140,1724471449903,-102.8191285,0.00013698,2]
[335741141,1724471449915,-161.64712178,0.00013698,2]
[335741172,1724471450709,-338.35287822,0.00013698,2]
[335741174,1724471450719,-95.91361552,0.00013698,2]
[335741232,1724471492668,500.0,0.00011937,2]
[335741281,1724472349129,-300.0,0.00012481,2]
[335741282,1724472349152,-1280.53188958,0.00012482,2]
[335741284,1724472436112,-302.30925191,0.00012482,2]
[335741285,1724472436133,-154.84620557,0.00012482,2]
[335741286,1724472436153,-3626.39314128,0.00012482,2]
[335741287,1724472436176,-3265.69833296,0.00012482,2]
[335741288,1724472436212,-5251.49554756,0.00012482,2]
[335741289,1724472436237,-155.10798056,0.00012971,2]
[335741290,1724472436265,-300.0,0.00012984,2]
[335741291,1724472436286,-933.97498438,0.00012985,2]
[335741292,1724472436308,-181.23342523,0.00012991,2]
[335741293,1724472436328,-156.91314124,0.00012999,2]
[335741294,1724472436350,-154.74645828,0.00012999,2]
[335741295,1724472436374,-160.97130701,0.00012999,2]
[335741296,1724472436395,-520.86090941,0.00012999,2]
[335741297,1724472436416,-468.51316819,0.00013306,2]
[335741298,1724472436442,-5720.57521366,0.00013426,2]
[335741299,1724472436464,-153.0,0.000135,2]
[335741300,1724472436487,-153.0,0.000135,2]
[335741301,1724472436508,-207.7006306,0.000135,2]
[335741302,1724472436528,-817.95411776,0.00013596,2]
[335741303,1724472436549,-301.66413705,0.00013596,2]
[335741304,1724472436571,-1848.02775479,0.00013597,2]
[335741305,1724472436592,-2309.72069701,0.00013597,3]
[335741306,1724472436613,-168.57940473,0.00013598,2]
[335741307,1724472436634,-1102.24414863,0.00013598,2]
[335741308,1724472436654,-4259.27474,0.00013598,2]
[335741309,1724472436678,-168.57940473,0.00013598,2]
[335741310,1724472436700,-168.57940473,0.00013599,2]
[335741311,1724472436722,-168.57940473,0.00013599,2]
[335741312,1724472436746,-168.57940473,0.00013599,2]
[335741313,1724472436769,-495.34936838,0.00013599,2]
[335741314,1724472436792,-1239.45765116,0.00013696,2]
[335741315,1724472441091,-1914.34138503,0.00013696,2]
[335741316,1724472441114,-404.08638448,0.00013698,2]
[335741317,1724472441136,-500.0,0.00013698,2]
[335741318,1724472441160,-500.0,0.00013698,2]
[335741319,1724472441181,-641.28,0.00013698,2]
[335741320,1724472441204,-486.30698969,0.00013698,2]
[335741321,1724472441228,-500.0,0.00013698,2]
[335741322,1724472441251,-500.0,0.00013698,2]
[335741323,1724472441274,-929.98,0.00013698,2]
[335741324,1724472441299,-500.0,0.00013698,2]
[335741325,1724472441322,-500.0,0.00013698,2]
[335741326,1724472441345,-500.0,0.00013698,2]
[335741327,1724472441367,-500.0,0.00013698,2]
[335741328,1724472441388,-500.0,0.00013698,2]
[335741329,1724472441658,-500.0,0.00013698,2]
[335741330,1724472441683,-500.0,0.00013698,2]
[335741331,1724472441707,-500.0,0.00013698,2]
[335741332,1724472441733,-365.70010369,0.00013698,2]
[335741333,1724472441757,-662.28,0.00013698,2]
[335741334,1724472441782,-188.25562502,0.00013698,2]
[335741335,1724472441806,-500.0,0.00013698,2]
[335741336,1724472441833,-500.0,0.00013698,2]
[335741337,1724472441859,-1034.24,0.00013698,2]
[335741338,1724472441883,-500.0,0.00013698,2]
[335741339,1724472441909,-1633.89,0.00013698,2]
[335741340,1724472441935,-1207.39,0.00013698,2]
[335741341,1724472441960,-60.78972651,0.00013698,2]
[335741342,1724472451112,331.18795221,0.00027,120]
[335741343,1724472454096,-953.0928066,0.00012482,2]
[335741347,1724472556103,-300.0,0.00012481,2]
[335741348,1724472556126,-802.53191996,0.00012482,2]
[335741349,1724472572153,-360.66106936,0.00012482,2]
[335741350,1724472572175,-406.89428367,0.00012482,2]
[335741351,1724472572197,-218.74217155,0.00012482,2]
[335741352,1724472572218,-4738.5639161,0.00012482,2]
[335741353,1724472572239,-9043.73150202,0.00012482,2]
[335741354,1724472572260,-19522.97338965,0.00012482,2]
[335741355,1724472572281,-2926.18841505,0.00012482,2]
[335741356,1724472572302,-939.08236877,0.00012482,2]
[335741357,1724472572322,-192.90353875,0.00012482,2]
[335741358,1724472572344,-157.695383,0.00012813,2]
[335741359,1724472572365,-157.695383,0.00012979,2]
[335741360,1724472572386,-157.695383,0.00013146,2]
[335741361,1724472600365,400000.0,0.00027,120]
[335741362,1724472625910,246.34133761,0.00013146,2]
[335741391,1724472632678,-157.695383,0.00013313,2]
[335741393,1724472632688,-157.695383,0.0001348,2]
[335741396,1724472632698,-1617.02428545,0.00013598,2]
[335741398,1724472632708,-362.82322174,0.00013599,2]
[335741400,1724472632718,-300.0,0.00013697,2]
[335741402,1724472632730,-233.09275926,0.00013698,2]
[335741404,1724472632740,-40.19363439,0.00013698,2]
[335741407,1724472632756,-271.76405199,0.00013698,2]
[335741422,1724472632863,-3.04231362,0.00013698,2]
[335741424,1724472632873,-787.05,0.00013698,2]
[335741426,1724472632883,-235.10804355,0.00013698,2]
[335741564,1724472639178,-264.89195645,0.00013698,2]
[335741566,1724472639188,-350.0,0.00013698,2]
[335741568,1724472639197,-500.0,0.00013698,2]
[335741570,1724472639206,-832.97,0.00013698,2]
[335741572,1724472639216,-500.0,0.00013698,2]
[335741574,1724472639225,-500.0,0.00013698,2]
[335741576,1724472639234,-1002.08,0.00013698,2]
[335741578,1724472639243,-500.0,0.00013698,2]
[335741580,1724472639253,-500.0,0.00013698,2]
[335741582,1724472639262,-500.0,0.00013698,2]
[335741584,1724472639271,-542.74513488,0.00013698,2]
[335741586,1724472639281,-591.0,0.00013698,2]
[335741588,1724472639290,-500.32815684,0.00013698,2]
[335741590,1724472639299,-500.0,0.00013698,2]
[335741592,1724472639308,-500.0,0.00013698,2]
[335741594,1724472639319,-500.0,0.00013698,2]
[335741596,1724472639328,-152.55072533,0.00013698,2]
[335741598,1724472639337,-283.51418639,0.00013698,2]
[335741600,1724472639346,-500.0,0.00013698,2]
[335741602,1724472639356,-125.84856635,0.00013698,2]
[335741604,1724472639368,-74.15143365,0.00013698,2]
[335741606,1724472639378,-500.0,0.00013698,2]
[335741608,1724472639387,-500.0,0.00013698,2]
[335741610,1724472639397,-1519.26474497,0.00013698,2]
[335741612,1724472639406,-1519.26474497,0.00013698,2]
[335741614,1724472639415,-1519.26474497,0.00013698,2]
[335741616,1724472639424,-155.12815248,0.00013698,2]
[335741618,1724472639434,-948.86,0.00013698,2]
[335741620,1724472639444,-573.66604859,0.00013698,2]
[335741622,1724472639453,-173.76232013,0.00013698,2]
[335741625,1724472639463,-500.0,0.00013698,2]
[335741627,1724472639473,-315.43926399,0.00013698,2]
[335741629,1724472639484,-736.42,0.00013698,2]
[335741631,1724472639493,-500.0,0.00013698,2]
[335741633,1724472639502,-500.0,0.00013698,2]
[335741635,1724472639511,-500.0,0.00013698,2]
[335741637,1724472639521,-500.0,0.00013698,2]
[335741638,1724472639530,-500.0,0.00013698,2]
[335741641,1724472639541,-500.0,0.00013698,2]
[335741643,1724472639551,-500.51934936,0.00013698,2]
[335741645,1724472639562,-2527.31,0.00013698,2]
[335741647,1724472639573,-500.0,0.00013698,2]
[335741649,1724472639592,-500.0,0.00013698,2]
[335741651,1724472639602,-500.0,0.00013698,2]
[335741653,1724472639611,-500.0,0.00013698,2]
[335741655,1724472639621,-1128.08,0.00013698,2]
[335741657,1724472639633,-1128.38,0.00013698,2]
[335741659,1724472639642,-500.0,0.00013698,2]
[335741661,1724472639652,-500.0,0.00013698,2]
[335741663,1724472639661,-741.46,0.00013698,2]
[335741666,1724472639671,-542.26,0.00013698,2]
[335741668,1724472639681,-778.8,0.00013698,2]
[335741670,1724472639692,-500.0,0.00013698,2]
[335741672,1724472639701,-582.81026484,0.00013698,2]
[335741674,1724472639710,-775.12,0.00013698,2]
[335741676,1724472639720,-1303.47,0.00013698,2]
[335741678,1724472639730,-500.0,0.00013698,2]
[335741680,1724472639740,-2268.83,0.00013698,2]
[335741682,1724472639749,-500.0,0.00013698,2]
[335741684,1724472639759,-500.0,0.00013698,2]
[335741686,1724472639769,-500.0,0.00013698,2]
[335741688,1724472639778,-500.0,0.00013698,2]
[335741690,1724472639788,-644.14,0.00013698,2]
[335741692,1724472639798,-500.0,0.00013698,2]
[335741695,1724472639807,-1504.04,0.00013698,2]
[335741697,1724472639817,-500.0,0.00013698,2]
[335741699,1724472639826,-511.23922017,0.00013698,2]
[335741701,1724472639836,-500.0,0.00013698,2]
[335741703,1724472639846,-500.0,0.00013698,2]
[335741705,1724472639856,-718.74,0.00013698,2]
[335741707,1724472639865,-500.0,0.00013698,2]
[335741709,1724472639875,-500.0,0.00013698,2]
[335741711,1724472639885,-546.66878442,0.00013698,2]
[335741713,1724472639894,-500.55269522,0.00013698,2]
[335741715,1724472639903,-500.0,0.00013698,2]
[335741717,1724472639913,-653.67,0.00013698,2]
[335741719,1724472639922,-500.0,0.00013698,2]
[335741721,1724472639932,-500.0,0.00013698,2]
[335741723,1724472639942,-500.0,0.00013698,2]
[335741725,1724472639951,-442.44977797,0.00013698,2]
[335741727,1724472639961,-500.0,0.00013698,2]
[335741729,1724472639970,-591.05,0.00013698,2]
[335741731,1724472639979,-502.74548938,0.00013698,2]
[335741733,1724472639989,-500.0,0.00013698,2]
[335741735,1724472639998,-500.0,0.00013698,2]
[335741737,1724472640007,-1421.72,0.00013698,2]
[335741739,1724472640016,-563.37,0.00013698,2]
[335741742,1724472640027,-1634.1,0.00013698,2]
[335741744,1724472640037,-500.0,0.00013698,2]
[335741746,1724472640046,-706.7,0.00013698,2]
[335741748,1724472640055,-503.69866884,0.00013698,2]
[335741750,1724472640064,-500.0,0.00013698,2]
[335741752,1724472640076,-844.96,0.00013698,2]
[335741754,1724472640085,-1425.97,0.00013698,2]
[335741756,1724472640098,-500.0,0.00013698,2]
[335741758,1724472640107,-500.0,0.00013698,2]
[335741760,1724472640116,-411.68077222,0.00013698,2]
[335741762,1724472640126,-500.0,0.00013698,2]
[335741764,1724472640136,-500.0,0.00013698,2]
[335741766,1724472640146,-549.95,0.00013698,2]
[335741768,1724472640156,-500.0,0.00013698,2]
[335741770,1724472640166,-1134.43,0.00013698,2]
[335741772,1724472640177,-500.0,0.00013698,2]
[335741774,1724472640187,-500.0,0.00013698,2]
[335741776,1724472640198,-501.58336688,0.00013698,2]
[335741778,1724472640208,-756.26,0.00013698,2]
[335741781,1724472640218,-500.0,0.00013698,2]
[335741783,1724472640227,-500.0,0.00013698,2]
[335741785,1724472640237,-500.0,0.00013698,2]
[335741787,1724472640247,-695.83,0.00013698,2]
[335741789,1724472640256,-500.0,0.00013698,2]
[335741791,1724472640266,-500.0,0.00013698,2]
[335741793,1724472640275,-500.0,0.00013698,2]
[335741795,1724472640286,-500.0,0.00013698,2]
[335741797,1724472640296,-500.0,0.00013698,2]
[335741799,1724472640305,-500.0,0.00013698,2]
[335741801,1724472640315,-500.0,0.00013698,2]
[335741803,1724472640333,-207.27455495,0.00013698,2]
[335741805,1724472640344,-1117.32,0.00013698,2]
[335741808,1724472640354,-500.0,0.00013698,2]
[335741810,1724472640365,-500.0,0.00013698,2]
[335741812,1724472640375,-285.92282374,0.00013698,2]
[335741814,1724472640385,-500.0,0.00013698,2]
[335741816,1724472640394,-726.61,0.00013698,2]
[335741818,1724472640403,-500.0,0.00013698,2]
[335741820,1724472640413,-500.0,0.00013698,2]
[335741823,1724472640423,-317.59539575,0.00013698,2]
[335741825,1724472640432,-677.1,0.00013698,2]
[335741827,1724472640441,-500.0,0.00013698,2]
[335741829,1724472640451,-500.0,0.00013698,2]
[335741831,1724472640460,-500.0,0.00013698,2]
[335741833,1724472640470,-2095.86,0.00013698,2]
[335741835,1724472640480,-500.0,0.00013698,2]
[335741837,1724472640489,-500.0,0.00013698,2]
[335741839,1724472640499,-500.0,0.00013698,2]
[335741841,1724472640508,-773.3,0.00013698,2]
[335741843,1724472640518,-500.0,0.00013698,2]
[335741845,1724472640527,-500.0,0.00013698,2]
[335741847,1724472640536,-500.0,0.00013698,2]
[335741849,1724472640546,-500.0,0.00013698,2]
[335741851,1724472640555,-500.0,0.00013698,2]
[335741853,1724472640565,-500.87301071,0.00013698,2]
[335741855,1724472640579,-500.0,0.00013698,2]
[335741857,1724472640588,-433.15344614,0.00013698,2]
[335741859,1724472640598,-500.0,0.00013698,2]
[335741861,1724472640607,-617.09,0.00013698,2]
[335741863,1724472640617,-500.0,0.00013698,2]
[335741865,1724472640626,-500.0,0.00013698,2]
[335741867,1724472640636,-500.0,0.00013698,2]
[335741869,1724472640645,-500.0,0.00013698,2]
[335741872,1724472640656,-500.0,0.00013698,2]
[335741874,1724472640665,-500.0,0.00013698,2]
[335741876,1724472640675,-537.96,0.00013698,2]
[335741878,1724472640684,-500.0,0.00013698,2]
[335741880,1724472640693,-500.0,0.00013698,2]
[335741882,1724472640703,-531.77767104,0.00013698,2]
[335741884,1724472640713,-720.16,0.00013698,2]
[335741886,1724472640723,-1577.45,0.00013698,2]
[335741888,1724472640733,-500.0,0.00013698,2]
[335741890,1724472640742,-1577.45,0.00013698,2]
[335741892,1724472640751,-500.0,0.00013698,2]
[335741894,1724472640760,-1577.45,0.00013698,2]
[335741896,1724472640769,-1577.45,0.00013698,2]
[335741898,1724472640780,-1577.45,0.00013698,2]
[335741900,1724472640792,-1577.45,0.00013698,2]
[335741902,1724472640803,-1577.45,0.00013698,2]
[335741904,1724472640814,-1577.45,0.00013698,2]
[335741907,1724472640823,-1577.45,0.00013698,2]
[335741909,1724472640833,-1577.45,0.00013698,2]
[335741911,1724472640843,-500.0,0.00013698,2]